Cogmind - Beta 14 @@@ ROGUE MODE // 2024.09.06 @ 03:17:08 Player: 0Z-4NL Result: Escaped! Performance ------------- Evolutions (9) 4500 Regions Visited (21) 4200 Robots Destroyed (160) 800 Value Destroyed (4432) 4432 Prototype IDs (56) 1120 Alien Tech Used (0) 0 Bonus (3219) 3219 TOTAL SCORE: 18271 Bonus ------- High Alert Combat Kills 115 Follower Combat Kills 97 Aligned with FarCom 300 Met Imprinter 300 Destroyed Z-Imprinter 1000 Win 3000 Friendly Fire -1593 Cogmind --------- Core Integrity 1600/1600 Matter 267/300 Energy 228/230 System Corruption 0% Temperature Cool (4) Movement Flying (31) Location To Epsilon Eridani Parts ------- > --- POWER (2) -------- Light Fission Core Light Antimatter Reactor > --- PROPULSION (7) --- Improved VTOL Module Improved VTOL Module Flying Fortress v7 Q-thruster > --- UTILITY (14) ----- Advanced Power Amplifier Medium Storage Unit Structural Scanner Enhanced Optical Array Advanced Transmission Jammer Advanced Reaction Control System Centrium Light Armor Plating Hacking Suite Hacking Suite Makeshift Hacking Suite Makeshift Hacking Suite Makeshift Hacking Suite Improved Hacking Suite Improved System Shield > --- WEAPON (2) ------- Zionite Phaser-S Makeshift Sword > --- INVENTORY (10) --- Nuclear Pulse Array Impulse Thruster Advanced Coolant Injector Zionite Biocell (600) Stasis Canceller Advanced ECM Suite Heavy Missile Launcher Peak State ------------ > --- POWER ------------ Light Fission Core Light Antimatter Reactor > --- PROPULSION ------- Improved VTOL Module Improved VTOL Module Flying Fortress v7 Q-thruster > --- UTILITY ---------- Advanced Power Amplifier Medium Storage Unit Structural Scanner Enhanced Optical Array Advanced Transmission Jammer Advanced Reaction Control System Centrium Light Armor Plating Hacking Suite Hacking Suite Makeshift Hacking Suite Makeshift Hacking Suite Makeshift Hacking Suite Improved Hacking Suite Improved System Shield > --- WEAPON ----------- Zionite Phaser-S Makeshift Sword > --- INVENTORY -------- Nuclear Pulse Array Impulse Thruster Advanced Coolant Injector Zionite Biocell Stasis Canceller Advanced ECM Suite Heavy Missile Launcher [Rating: 140] Favorites ----------- Power Reinforced Ion Engine Engine Reinforced Ion Engine Power Core Light Fission Core Reactor Zionite Light DM Reactor Propulsion Light Treads Treads Light Treads Leg Zionite Composite Leg I Wheel Compact Wheel Hover Unit Zionite Glidesys I Flight Unit Improved VTOL Module Utility Makeshift Hacking Suite Device Seismic Detector Storage Large Storage Unit Processor Machine Analyzer Hackware Makeshift Hacking Suite Protection Hardened Light Armor Plating Weapon Zionite Phaser-S Energy Gun Zionite Phaser-S Energy Cannon Advanced Beam Cannon Ballistic Gun Assault Rifle Ballistic Cannon Improved Light Cannon Launcher Improved Grenade Launcher Special Weapon RU-N14's Throwing Claymores Impact Weapon Mace Slashing Weapon Makeshift Sword Build | -11 -10 -9 -9 -9 -8 -8 -7 -7 -7 -7 -7 -6 -6 -6 -6 -6 -5 -4 -3 -2 -1 ------- Run | Yrd Mat Mat Min Exi Min Mat Fac Low Low Zio Dee Pro Fac Ext Cet Arc Fac Fac Res Res Acc Slots Evolved 18 | . . 2 . . . 2 2 . . . . . 2 . . . 2 2 2 2 2 Power 1 | . . . . . . . . . . . . . . . . . . . . . 1 Propulsion 5 | . . 1 . . . 1 1 . . . . . . . . . . 1 . 1 . Utility 12 | . . 1 . . . 1 1 . . . . . 2 . . . 2 1 2 1 1 Weapon . | . . . . . . . . . . . . . . . . . . . . . . Parts Attached 295 | 1 17 57 9 3 8 21 9 5 2 11 53 9 16 22 7 4 5 9 6 19 2 Power 22 | . 1 2 1 . 2 1 1 . . . 6 1 3 1 . . . . 1 1 1 Engine 8 | . 1 2 1 . 1 . 1 . . . 1 1 . . . . . . . . . Core 8 | . . . . . 1 1 . . . . 2 . 2 . . . . . 1 . 1 Reactor 6 | . . . . . . . . . . . 3 . 1 1 . . . . . 1 . Propulsion 35 | . 4 7 . . 2 3 1 . . . 14 . . . 2 . . 1 . 1 . Treads 15 | . 2 7 . . 2 2 . . . . 1 . . . 1 . . . . . . Leg 8 | . . . . . . . . . . . 8 . . . . . . . . . . Wheel 2 | . 2 . . . . . . . . . . . . . . . . . . . . Hover 3 | . . . . . . . . . . . 3 . . . . . . . . . . Flight 7 | . . . . . . 1 1 . . . 2 . . . 1 . . 1 . 1 . Utility 122 | 1 7 20 1 . . 6 3 . 1 6 18 5 11 11 4 1 4 4 5 13 1 Device 68 | 1 2 16 . . . 3 . . . 3 7 . 7 9 2 1 2 2 1 11 1 Storage 8 | . 2 . . . . 1 . . . . 2 1 . . 1 . . . 1 . . Processor 4 | . . 1 . . . 1 . . . . . . 1 . . . . 1 . . . Hackware 11 | . . . . . . . 2 . . . . 3 . . . . 2 1 2 1 . Protection 31 | . 3 3 1 . . 1 1 . 1 3 9 1 3 2 1 . . . 1 1 . Artifact . | . . . . . . . . . . . . . . . . . . . . . . Weapon 116 | . 5 28 7 3 4 11 4 5 1 5 15 3 2 10 1 3 1 4 . 4 . Energy Gun 21 | . . 1 2 . 2 . . . . . 6 1 1 4 . 2 . . . 2 . Energy Cannon 9 | . . 1 2 . . 5 1 . . . . . . . . . . . . . . Ballistic Gun 14 | . 2 12 . . . . . . . . . . . . . . . . . . . Ballistic Cannon 6 | . . 1 . 1 . 4 . . . . . . . . . . . . . . . Launcher 28 | . 1 5 2 1 1 1 . 3 1 2 2 1 1 5 . . . . . 2 . Special Weapon 9 | . . . . . . . . . . 2 5 . . 1 . 1 . . . . . Impact Weapon 15 | . 2 8 1 1 1 1 1 . . . . . . . . . . . . . . Slashing Weapon 14 | . . . . . . . 2 2 . 1 2 1 . . 1 . 1 4 . . . Piercing Weapon . | . . . . . . . . . . . . . . . . . . . . . . Special Melee Weapon . | . . . . . . . . . . . . . . . . . . . . . . Unidentified Prototypes 17 | . . 2 . . . . . . . 3 10 . . . 1 . . 1 . . . Parts Lost 10 | . . 5 . . . 1 . . . . 3 . . . . 1 . . . . . Power . | . . . . . . . . . . . . . . . . . . . . . . Propulsion 2 | . . 2 . . . . . . . . . . . . . . . . . . . Utility 6 | . . 2 . . . 1 . . . . 3 . . . . . . . . . . Weapon 2 | . . 1 . . . . . . . . . . . . . 1 . . . . . Highest Loss Streak 2 | . . 2 . . . 1 . . . . 2 . . . . 1 . . . . . To Critical Strikes . | . . . . . . . . . . . . . . . . . . . . . . Average Slot Usage (%) 88 | . 100 99 100 100 100 97 76 76 76 75 82 67 79 80 80 77 81 84 84 86 88 Engine 5 | . 14 11 11 11 10 8 6 7 7 7 1 7 . . . . . . . . . Reactor 1 | . . . . . . . . . . . 3 . 3 4 6 6 5 5 . 2 4 Treads 10 | . 13 22 22 22 24 34 . . . . 3 . . . . . . . . . . Leg 4 | . 4 . . . . . . . . . 24 . . . . . . . . . . Wheel 3 | . 10 11 11 11 8 . . . . . . . . . . . . . . . . Flight 5 | . . . . . . . 15 15 15 15 . 15 13 13 12 13 11 15 14 17 16 Device 8 | . 5 10 11 11 11 10 . . . 1 8 10 11 7 8 13 10 9 8 12 16 Storage 7 | . 14 11 11 11 11 9 7 7 7 7 2 10 6 6 8 6 5 5 4 4 4 Processor 3 | . . . . . . 5 7 7 7 7 6 . . 4 . . . 5 4 4 4 Hackware 7 | . . . . . . . 15 15 15 11 . . 20 20 20 20 29 26 32 30 28 Protection 9 | . 8 11 11 11 11 9 6 7 7 8 13 7 7 6 8 6 5 5 4 4 4 Energy Gun 3 | . . . 3 2 4 . . . . . 5 5 6 11 . 7 5 5 4 3 4 Energy Cannon 1 | . . 8 2 . . 5 7 . . . . . . . . . . . . . . Ballistic Gun 3 | . 26 9 . . . . . . . . . . . . . . . . . . . Ballistic Cannon 2 | . . . 11 11 11 11 . . . . . . . . . . . . . . . Launcher 1 | . . . 3 . 1 . . 10 15 4 3 . . . 8 1 . . . . . Impact Weapon 1 | . . 2 1 8 4 . 3 . . . . . . . . . . . . . . Slashing Weapon 1 | . . . . . . . 3 3 . 3 1 6 6 . 3 . 4 5 4 4 4 Peak Build Rating 140 | 7 8 18 19 20 24 57 64 63 65 75 83 84 91 94 93 96 99 114 122 135 140 Average Rating 53 | 6 7 15 16 18 20 31 62 61 62 69 60 81 86 89 86 93 97 110 115 129 139 On Entrance 62 | 6 7 8 16 19 18 23 57 63 62 65 75 77 76 84 81 88 89 99 111 122 129 Naked Turns . | . . . . . . . . . . . . . . . . . . . . . . Heaviest Build 69 | 12 51 63 65 65 65 69 47 43 50 64 64 50 46 51 51 51 46 46 46 39 47 Greatest Support 120 | 20 40 40 40 16 65 85 55 55 55 55 120 55 55 55 55 55 55 60 60 68 68 Greatest Overweight (x) 4 | . 3 3 4 4 4 . . . . 1 2 . . . . . . . . . . Average Overweight (x) . | . . 2 3 3 2 . . . . . . . . . . . . . . . . Largest Inventory Capacity 20 | 8 20 20 20 20 20 20 15 15 15 15 15 15 15 15 15 15 15 15 15 10 10 Average Capacity 14 | 8 14 20 20 20 20 19 15 15 15 15 5 15 15 15 15 15 15 15 11 10 10 Most Carried 20 | 6 16 20 20 20 20 20 15 15 15 15 15 15 15 15 15 15 15 15 15 10 9 Average Carried 14 | 6 11 19 20 19 19 19 14 14 14 14 5 14 14 14 15 14 14 14 10 9 8 Final Capacity 20 | 8 20 20 20 20 20 15 15 15 15 15 15 15 15 15 15 15 15 15 10 10 10 Final Carried 20 | 6 16 20 20 20 20 15 15 15 15 15 14 13 15 15 15 15 15 15 10 10 8 Class Distribution -------------------- 47% | Mutant 24% | Hacker-Mutant 8% | Scavenger-Mutant 8% | Derelict-Mutant 6% | Wizard-Ninja Dominant Class ---------------- Mutant | -10/Materials Scavenger-Mutant | -9/Materials Mutant | -9/Mines Mutant | -9/Exiles Mutant | -8/Mines Mutant | -8/Materials Hacker-Mutant | -7/Factory Hacker-Mutant | -7/Lower Caves Hacker-Mutant | -7/Lower Caves Hacker-Mutant | -7/Zion Mutant | -7/Deep Caves Mutant | -6/Proximity Caves Hacker-Mutant | -6/Factory Hacker-Mutant | -6/Extension Hacker-Mutant | -6/Cetus Hacker-Mutant | -6/Archives Hacker-Mutant | -5/Factory Hacker-Ninja | -4/Factory Wizard-Ninja | -3/Research Wizard-Ninja | -2/Research Wizard-Ninja | -1/Access Resources | -11 -10 -9 -9 -9 -8 -8 -7 -7 -7 -7 -7 -6 -6 -6 -6 -6 -5 -4 -3 -2 -1 ----------- Run | Yrd Mat Mat Min Exi Min Mat Fac Low Low Zio Dee Pro Fac Ext Cet Arc Fac Fac Res Res Acc Matter Collected 4835 | 230 558 906 130 . 150 466 70 190 140 120 429 332 242 175 205 36 49 60 90 58 199 Remotely . | . . . . . . . . . . . . . . . . . . . . . . Salvage Created 5951 | 96 492 1460 91 . 77 503 83 59 322 . 490 214 337 529 594 36 80 155 134 86 113 Parts 362 | 4 36 125 3 . 13 35 . 2 10 . 27 7 35 18 18 4 4 3 2 13 3 Haulers Intercepted 4 | . . 2 . . . 2 . . . . . . . . . . . . . . . Recyclers Shooed 3 | . . 2 . . . . . . . . . . 1 . . . . . . . . Parts Field Recycled . | . . . . . . . . . . . . . . . . . . . . . . Retrieved Matter . | . . . . . . . . . . . . . . . . . . . . . . Parts Self-Destructed 5 | . . . . . . . . . 5 . . . . . . . . . . . . Prevented 14 | . . . . . . . . 3 4 . . 7 . . . . . . . . . Kills | -11 -10 -9 -9 -9 -8 -8 -7 -7 -7 -7 -7 -6 -6 -6 -6 -6 -5 -4 -3 -2 -1 ------- Run | Yrd Mat Mat Min Exi Min Mat Fac Low Low Zio Dee Pro Fac Ext Cet Arc Fac Fac Res Res Acc Combat Hostiles Destroyed 105 | . 12 35 3 . 8 7 . 1 7 . 12 2 4 6 4 . . . . 4 . Guns 29 | . 12 8 . . . . . . . . 3 . . 6 . . . . . . . Cannons 29 | . . 18 3 . . 6 . . . . 2 . . . . . . . . . . AOE 40 | . . 9 . . 8 1 . . 7 . 7 . 4 . . . . . . 4 . Classes Destroyed 17 | 2 5 5 1 . . . . . . . 2 1 . . 1 . . . . . . Worker 6 | . . 2 . . . 2 . . . . . . 1 . . . . . . 1 . Builder 11 | . 1 2 . . 1 1 . . . . . . 6 . . . . . . . . Tunneler 2 | 1 . . . . . 1 . . . . . . . . . . . . . . . Hauler 4 | . . 2 . . . 2 . . . . . . . . . . . . . . . Recycler 8 | 1 . 1 . . . . 1 . . . . . 1 1 . . . 1 1 . 1 Operator 8 | . 2 2 . . . 2 . . . . . . . . . 1 . . . 1 . Watcher 13 | . 2 5 . . . 2 . . . . . . . 1 . . 3 . . . . Swarmer 35 | . 3 11 . . 8 1 . . 3 . . . 4 1 . . . . . 4 . Grunt 35 | . 9 13 2 . . 6 . 1 4 . . . . . . . . . . . . Brawler 1 | . . 1 . . . . . . . . . . . . . . . . . . . Protector 1 | . . 1 . . . . . . . . . . . . . . . . . . . Sentry 14 | . . 9 . . . . . . . . . . . 5 . . . . . . . Hunter 2 | . . . . . . . . . . . . 2 . . . . . . . . . Cetus Guard 4 | . . . . . . . . . . . . . . . 4 . . . . . . Z-Technician 5 | . . . . . . . . . . . 5 . . . . . . . . . . Z-Light 8 | . . . . . . . . . . . 8 . . . . . . . . . . Packrat 1 | . . . . . . . . . . . . 1 . . . . . . . . . Assembled 5 | . . . 1 . . . . . . . 4 . . . . . . . . . . Savage 3 | . . . . . . . . . . . 1 . . . 2 . . . . . . Butcher 3 | . . . . . . . . . . . . . . . 3 . . . . . . Fireman 2 | . . . . . . . . . . . 2 . . . . . . . . . . Best Kill Streak 8 | 2 8 7 2 . 4 5 1 1 3 . 5 2 4 1 4 1 1 1 1 3 1 Combat Bots Only 7 | . 7 6 2 . 4 3 . 1 3 . 5 2 4 1 4 . . . . 3 . Max Kills in Single Turn 3 | 1 1 2 1 . 3 2 1 1 2 . 2 1 2 1 3 1 1 1 1 2 1 Gunslinging 1 | . . 1 . . . . . . . . . . . . . . . . . . . Exploded 3 | . . 2 . . 3 1 . . 2 . 1 . 2 . . . . . . 2 . Melee . | . . . . . . . . . . . . . . . . . . . . . . Uniques/NPCs Destroyed . | . . . . . . . . . . . . . . . . . . . . . . Combat | -11 -10 -9 -9 -9 -8 -8 -7 -7 -7 -7 -7 -6 -6 -6 -6 -6 -5 -4 -3 -2 -1 -------- Run | Yrd Mat Mat Min Exi Min Mat Fac Low Low Zio Dee Pro Fac Ext Cet Arc Fac Fac Res Res Acc Hostile Shots Fired 519 | . 52 169 6 . 4 53 . 10 6 . 42 15 14 103 17 11 . . 6 11 . Missed 210 | . 18 51 2 . . 20 . 3 3 . 11 7 7 66 10 4 . . 4 4 . Damage Taken 5472 | . 404 1321 90 . 33 543 . 163 55 . 1946 58 86 228 178 165 . . 51 151 . Core 964 | . 63 220 17 . . 73 . 71 . . 494 . . 5 . . . . . 21 . Absorbed by Shields . | . . . . . . . . . . . . . . . . . . . . . . Redirected to Shielding 90 | . . . . . . . . . . . 90 . . . . . . . . . . Regen/Repaired (Parts) 126 | . . 25 . . . . . . . . . . 89 . . . 12 . . . . Core Remaining (%) 83 | 100 74 . . . 40 86 . . . . . 19 . . . 99 100 100 100 98 100 Volleys Fired 589 | 5 39 80 7 . 7 62 1 19 13 2 99 42 39 79 13 2 2 . 41 35 2 Largest 2 | 2 2 2 2 . 1 2 1 2 2 1 2 1 1 2 1 2 1 . 1 1 1 Hottest 120 | 40 40 108 107 . 75 114 65 66 72 5 120 60 60 120 36 60 60 . 60 60 60 Shots Fired 793 | 10 78 140 11 . 7 100 1 22 22 2 102 42 39 121 13 3 2 . 41 35 2 Gun 508 | 10 78 78 . . 3 . . . . . 84 28 36 114 . 2 2 . 41 30 2 Cannon 158 | . . 51 9 . . 97 1 . . . . . . . . . . . . . . Launcher 111 | . . 11 2 . 4 3 . 22 22 . 5 14 3 7 13 . . . . 5 . Special 16 | . . . . . . . . . . 2 13 . . . . 1 . . . . . Kinetic 221 | 10 78 75 5 . . 53 . . . . . . . . . . . . . . . Thermal 136 | . . 51 4 . 3 44 1 . . . 33 . . . . . . . . . . Explosive 48 | . . 11 2 . 4 . . 4 . . 18 . 3 . . 1 . . . 5 . Electromagnetic 80 | . . 3 . . . 3 . 18 22 . . 14 . 7 13 . . . . . . Phasic 306 | . . . . . . . . . . . 51 28 36 114 . 2 2 . 41 30 2 Robot Hit Streak 17 | 4 10 17 13 . 16 6 . . 3 4 8 . 1 13 11 2 . . 1 . . Robot Miss Streak 5 | 2 5 3 . . 1 4 . . 2 . 3 . 3 3 1 1 . . 3 . . Penetration Max . | . . . . . . . . . . . . . . . . . . . . . . Secondary Targets 4 | . 3 1 . . . . . . . . . . . . . . . . . . . Max Gunslinging Chain 1 | . 1 1 . . . . . . . . . . . . . . . . . . . Shots Hit Robots 307 | 5 45 83 6 . 3 50 1 . 4 2 26 1 12 44 4 2 9 1 5 3 1 Core Hits 247 | 3 25 65 5 . 11 24 . 8 13 . 25 5 16 13 18 1 2 . 2 10 1 Critical Kills . | . . . . . . . . . . . . . . . . . . . . . . Critical Parts Destroyed 2 | . 1 1 . . . . . . . . . . . . . . . . . . . Critical Strikes 11 | . 1 1 . . . 2 . . . . 5 . . 2 . . . . . . . Burn 1 | . . . . . . . . . . . 1 . . . . . . . . . . Destroy 2 | . 1 1 . . . . . . . . . . . . . . . . . . . Blast 2 | . . . . . . 2 . . . . . . . . . . . . . . . Sever 3 | . . . . . . . . . . . 3 . . . . . . . . . . Intensify 3 | . . . . . . . . . . . 1 . . 2 . . . . . . . Melee Attacks 146 | . 7 7 2 . 3 . 9 . . . 7 8 33 . 3 1 23 8 10 19 6 Impact 23 | . 7 7 2 . 3 . 4 . . . . . . . . . . . . . . Slashing 123 | . . . . . . . 5 . . . 7 8 33 . 3 1 23 8 10 19 6 Piercing . | . . . . . . . . . . . . . . . . . . . . . . Sneak Attacks 24 | . . . . . . . 1 . . . 6 1 9 . . 1 1 1 1 2 1 Combat Hostiles . | . . . . . . . . . . . . . . . . . . . . . . Follow-up Attacks . | . . . . . . . . . . . . . . . . . . . . . . Damage Inflicted 13693 | 60 613 2294 129 . 316 1332 108 410 374 . 2850 332 1182 1360 931 105 395 79 213 519 91 Guns 3165 | 60 613 670 . . 43 . . . . . 330 . 99 1284 . . . . 66 . . Cannons 2148 | . . 852 125 . . 1171 . . . . . . . . . . . . . . . Explosions 5579 | . . 772 . . 273 161 . 410 374 . 1646 249 411 76 888 14 . . . 305 . Melee 2447 | . . . . . . . 108 . . . 524 83 672 . 43 91 395 79 147 214 91 Ramming 4 | . . . 4 . . . . . . . . . . . . . . . . . . Kinetic 2210 | 60 613 658 83 . . 796 . . . . . . . . . . . . . . . Thermal 1696 | . . 852 42 . 43 375 . . . . 231 . . . 153 . . . . . . Explosive 3609 | . . 772 . . 273 . . 188 . . 1646 . 411 . . 14 . . . 305 . Electromagnetic 1829 | . . 12 . . . 161 . 222 374 . . 249 . 76 735 . . . . . . Impact 108 | . . . . . . . 108 . . . . . . . . . . . . . . Slashing 2689 | . . . . . . . . . . . 874 83 672 . 43 91 395 79 147 214 91 Piercing . | . . . . . . . . . . . . . . . . . . . . . . Phasic 1548 | . . . . . . . . . . . 99 . 99 1284 . . . . 66 . . Highest Corruption 7 | . . . . . . 3 . . . . 7 7 . . . . . . . . . Average Corruption 5 | . . . . . . 2 . . . . 6 7 . . . . . . . . . Corruption Purged . | . . . . . . . . . . . . . . . . . . . . . . Corruption Blocked . | . . . . . . . . . . . . . . . . . . . . . . Effects 33 | . . . . . . 15 . . . . 12 6 . . . . . . . . . Message Errors 9 | . . . . . . 6 . . . . 2 1 . . . . . . . . . Matter Fused 10 | . . . . . . 3 . . . . 6 1 . . . . . . . . . Heat Flow Errors 1 | . . . . . . . . . . . . 1 . . . . . . . . . Energy Discharges 5 | . . . . . . 2 . . . . 1 2 . . . . . . . . . Parts Fused 1 | . . . . . . 1 . . . . . . . . . . . . . . . Data Loss (minor) 3 | . . . . . . 1 . . . . 1 1 . . . . . . . . . Data Loss (major) 1 | . . . . . . . . . . . 1 . . . . . . . . . . Alerts 2 | . . . . . . 1 . . . . 1 . . . . . . . . . . Weapon Failures 1 | . . . . . . 1 . . . . . . . . . . . . . . . Overload Shots . | . . . . . . . . . . . . . . . . . . . . . . Overflow Damage 753 | . . . . . 7 22 68 . . . 259 7 139 . 13 . 93 49 . 96 . Projectiles 22 | . . . . . . 22 . . . . . . . . . . . . . . . Explosions 82 | . . . . . 7 . . . . . 25 7 38 . 5 . . . . . . Melee 649 | . . . . . . . 68 . . . 234 . 101 . 8 . 93 49 . 96 . Knockbacks 13 | . . . . . . 12 1 . . . . . . . . . . . . . . Impact 1 | . . . . . . . 1 . . . . . . . . . . . . . . Kinetic 12 | . . . . . . 12 . . . . . . . . . . . . . . . Secondary . | . . . . . . . . . . . . . . . . . . . . . . Self-Inflicted Damage 84 | . . 17 . . . . . 41 9 . . 10 . . 7 . . . . . . Shots 8 | . . 1 . . . . . 3 2 . . 1 . . 1 . . . . . . Rammed 1 | . . . 1 . . . . . . . . . . . . . . . . . . Targets Rammed 1 | . . . 1 . . . . . . . . . . . . . . . . . . Kicked . | . . . . . . . . . . . . . . . . . . . . . . Crushed . | . . . . . . . . . . . . . . . . . . . . . . Highest Temperature 307 | . 18 144 207 . 92 123 36 83 60 . 256 262 222 302 307 . 84 . 126 28 36 Average Temperature 43 | . 7 35 75 . 27 27 20 32 28 . 117 132 64 39 135 . 44 . 35 10 19 Received Heat Transfer 1314 | . 195 426 18 . . 342 . 45 9 . 207 . . 18 18 27 . . 9 . . Effects 2 | . . . . . . . . . . . . . 2 . . . . . . . . Interference 2 | . . . . . . . . . . . . . 2 . . . . . . . . Siege Activations . | . . . . . . . . . . . . . . . . . . . . . . Robots Corrupted 8 | . . . . . . . 1 1 . . . 2 . . 4 . . . . . . Combat Hostiles 7 | . . . . . . . . 1 . . . 2 . . 4 . . . . . . Parts Fried 8 | . . . . . . . . 1 2 . . 2 . . 3 . . . . . . Impact Corruptions 3 | . . . . . . . 3 . . . . . . . . . . . . . . Robots Melted 1 | . . . . . . . . . . . 1 . . . . . . . . . . Combat Hostiles . | . . . . . . . . . . . . . . . . . . . . . . Parts Melted 4 | . . 3 . . . . . . . . 1 . . . . . . . . . . Heat Transferred 2723 | . . 1426 74 . 74 555 . . . . 444 . . . 150 . . . . . . Parts Sabotaged . | . . . . . . . . . . . . . . . . . . . . . . Parts Stolen . | . . . . . . . . . . . . . . . . . . . . . . Parts Stripped . | . . . . . . . . . . . . . . . . . . . . . . Power Chain Reactions 4 | . . . . . . . . . 2 . . . . . 2 . . . . . . Alert | -11 -10 -9 -9 -9 -8 -8 -7 -7 -7 -7 -7 -6 -6 -6 -6 -6 -5 -4 -3 -2 -1 ------- Run | Yrd Mat Mat Min Exi Min Mat Fac Low Low Zio Dee Pro Fac Ext Cet Arc Fac Fac Res Res Acc Peak Influence 684 | 10 348 684 232 . 124 247 123 . . . . . 250 180 447 236 230 81 179 380 114 Initial 216 | . 6 137 216 . . . 71 . . . . . 31 51 49 184 82 32 42 20 68 Average 154 | 6 150 326 175 . 90 61 96 . . . . . 133 92 161 206 119 56 94 157 87 Maximum Alert Level 2 | . 1 2 1 . . 1 . . . . . . 1 . 2 1 1 . . 1 . Low Security (%) 71 | 100 52 35 40 . 100 89 100 . . . . . 73 100 74 26 78 100 100 65 100 Level 1 21 | . 47 27 59 . . 10 . . . . . . 26 . 11 73 21 . . 34 . Level 2 7 | . . 37 . . . . . . . . . . . . 15 . . . . . . Level 3 . | . . . . . . . . . . . . . . . . . . . . . . Level 4 . | . . . . . . . . . . . . . . . . . . . . . . Level 5 . | . . . . . . . . . . . . . . . . . . . . . . High Security . | . . . . . . . . . . . . . . . . . . . . . . Max Security . | . . . . . . . . . . . . . . . . . . . . . . Squads Dispatched 16 | . 4 4 . . . 3 1 . . . . . 1 1 . . . . . 2 . Investigation 4 | . 2 . . . . 1 . . . . . . . . . . . . . 1 . Extermination 3 | . . . . . . . 1 . . . . . 1 . . . . . . 1 . Reinforcement 8 | . 2 3 . . . 2 . . . . . . . 1 . . . . . . . Assault 1 | . . 1 . . . . . . . . . . . . . . . . . . . Garrison . | . . . . . . . . . . . . . . . . . . . . . . Intercept . | . . . . . . . . . . . . . . . . . . . . . . Searches Triggered . | . . . . . . . . . . . . . . . . . . . . . . Construction Impeded 1 | . . . . . . . . . . . . . . 1 . . . . . . . Haulers Reinforced . | . . . . . . . . . . . . . . . . . . . . . . Active Scanning Responses . | . . . . . . . . . . . . . . . . . . . . . . Cargo Convoy Interrupts . | . . . . . . . . . . . . . . . . . . . . . . Stealth | -11 -10 -9 -9 -9 -8 -8 -7 -7 -7 -7 -7 -6 -6 -6 -6 -6 -5 -4 -3 -2 -1 --------- Run | Yrd Mat Mat Min Exi Min Mat Fac Low Low Zio Dee Pro Fac Ext Cet Arc Fac Fac Res Res Acc Distress Signals 15 | . . 5 . . . 1 . . . . . . 2 3 . . . . . 4 . Communications Jammed . | . . . . . . . . . . . . . . . . . . . . . . Distress Signals . | . . . . . . . . . . . . . . . . . . . . . . Times Spotted 215 | . 22 55 4 . 4 18 1 18 10 . 13 2 11 12 5 4 11 2 6 16 1 Peak Tracking Total 10 | . 7 6 2 . 4 3 1 10 3 . 5 2 5 6 5 4 3 2 2 3 1 Tactical Retreats 22 | . 2 5 . . . 1 . 5 2 . 1 . 3 2 . . . . . 1 . Traps | -11 -10 -9 -9 -9 -8 -8 -7 -7 -7 -7 -7 -6 -6 -6 -6 -6 -5 -4 -3 -2 -1 ------- Run | Yrd Mat Mat Min Exi Min Mat Fac Low Low Zio Dee Pro Fac Ext Cet Arc Fac Fac Res Res Acc Traps Triggered 6 | . . . . . . 1 . . . . . . . 3 . . 2 . . . . Indirectly . | . . . . . . . . . . . . . . . . . . . . . . Trap Hack Attempts . | . . . . . . . . . . . . . . . . . . . . . . Triggered . | . . . . . . . . . . . . . . . . . . . . . . Disarmed . | . . . . . . . . . . . . . . . . . . . . . . Reprogrammed . | . . . . . . . . . . . . . . . . . . . . . . Reused . | . . . . . . . . . . . . . . . . . . . . . . Traps Extracted . | . . . . . . . . . . . . . . . . . . . . . . Installed . | . . . . . . . . . . . . . . . . . . . . . . Triggered . | . . . . . . . . . . . . . . . . . . . . . . Machines | -11 -10 -9 -9 -9 -8 -8 -7 -7 -7 -7 -7 -6 -6 -6 -6 -6 -5 -4 -3 -2 -1 ---------- Run | Yrd Mat Mat Min Exi Min Mat Fac Low Low Zio Dee Pro Fac Ext Cet Arc Fac Fac Res Res Acc Machines Disabled 13 | . . 5 1 . . 1 . . . . . . . 4 . . . . 1 1 . Max in Single Turn 2 | . . 2 1 . . 1 . . . . . . . 1 . . . . 1 1 . Garrison Access 5 | . . . . . . . 1 . . . . . 1 . . . 1 . . 1 1 Machines Repaired . | . . . . . . . . . . . . . . . . . . . . . . Machines Dismantled . | . . . . . . . . . . . . . . . . . . . . . . Machines Sabotaged . | . . . . . . . . . . . . . . . . . . . . . . Overloaded Fab Kills . | . . . . . . . . . . . . . . . . . . . . . . Hacking | -11 -10 -9 -9 -9 -8 -8 -7 -7 -7 -7 -7 -6 -6 -6 -6 -6 -5 -4 -3 -2 -1 --------- Run | Yrd Mat Mat Min Exi Min Mat Fac Low Low Zio Dee Pro Fac Ext Cet Arc Fac Fac Res Res Acc Machines Accessed 91 | . 8 9 . 2 . 7 3 1 1 . . . 10 15 2 . 11 4 4 10 4 Terminals 68 | . 6 7 . . . 6 2 . . . . . 5 15 2 . 7 3 3 9 3 Fabricators 4 | . . . . . . . . . . . . . 1 . . . 2 . 1 . . Repair Stations 3 | . . 1 . . . . . . . . . . 1 . . . 1 . . . . Recycling Units 3 | . 2 . . . . . . . . . . . 1 . . . . . . . . Scanalyzers 4 | . . 1 . . . 1 . . . . . . 1 . . . . 1 . . . Garrison Access 5 | . . . . . . . 1 . . . . . 1 . . . 1 . . 1 1 Total Hacks 232 | . 23 27 . 2 . 19 8 1 1 . . . 18 22 8 . 27 9 21 35 11 Successful 155 | . 13 16 . 2 . 8 5 1 1 . . . 12 18 4 . 21 7 13 26 8 Failed 76 | . 9 11 . . . 11 3 . . . . . 6 4 4 . 6 2 8 9 3 Catastrophic 8 | . 1 3 . . . 3 . . . . . . 1 . . . . . . . . Database Lockouts 1 | . 1 . . . . . . . . . . . . . . . . . . . . Manual 121 | . 19 10 . 1 . 10 3 . . 4 . . 4 10 . . 16 5 11 23 5 Terminals 194 | . 21 22 . . . 14 7 . . . . . 10 22 8 . 19 8 20 34 9 Fabricators 8 | . . . . . . . . . . . . . 2 . . . 5 . 1 . . Repair Stations 6 | . . 2 . . . . . . . . . . 2 . . . 2 . . . . Recycling Units 4 | . 2 . . . . . . . . . . . 2 . . . . . . . . Scanalyzers 10 | . . 3 . . . 5 . . . . . . 1 . . . . 1 . . . Garrison Access 6 | . . . . . . . 1 . . . . . 1 . . . 1 . . 1 2 Terminal Hacks 105 | . 9 10 . 2 . 3 3 1 1 . . . 6 14 4 . 11 5 10 20 6 Record 5 | . . . . 1 . . . . . . . . . . 4 . . . . . . Part Schematic 1 | . . . . . . . . . . . . . . . . . 1 . . . . Robot Analysis 4 | . 2 1 . . . . . . . . . . . 1 . . . . . . . Prototype ID Bank 4 | . 1 . . . . . . . . . . . . . . . 1 . 1 1 . Open Door 12 | . . . . . . . . 1 1 . . . . 9 . . . . . . 1 Level Access Points 7 | . . . . . . . 1 . . . . . 1 . . . 1 1 1 1 1 Branch Access Points 3 | . . . . . . . . . . . . . 1 . . . 1 . . 1 . Terminal Index 9 | . 1 . . . . 1 1 . . . . . . 1 . . 1 1 1 1 1 Fabricator Index 2 | . . . . . . . . . . . . . . . . . 1 1 . . . Garrison Index 2 | . . . . . . . . . . . . . . . . . . 1 . 1 . Alert Level 9 | . . 2 . . . 1 . . . . . . 1 1 . . 1 . 1 2 . Unreport Threat 3 | . . 2 . . . . . . . . . . . . . . . . . 1 . Locate Traps 16 | . 2 3 . . . . 1 . . . . . . . . . 3 . 2 3 2 Maintenance Status 3 | . . . . . . . . . . . . . . . . . . . 1 1 1 Surveillance Status 1 | . . . . . . . . . . . . . . . . . . . . 1 . Patrol Status 2 | . . . . . . . . . . . . . . . . . . . 1 1 . Recall Investigation 1 | . . . . . . . . . . . . . . . . . . . . 1 . Recall Extermination 2 | . . . . . . . . . . . . . 1 . . . . . . 1 . Recall Reinforcements 3 | . . 1 . . . . . . . . . . . 1 . . . . . 1 . Hauler Manifests 5 | . 1 1 . . . 1 . . . . . . 1 . . . 1 . . . . Zone Layout 10 | . 2 . . . . . . . . . . . 1 1 . . . 1 2 3 . Derelict Proto ID Bank 1 | . . . . 1 . . . . . . . . . . . . . . . . . Fabricator Hacks 4 | . . . . . . . . . . . . . 1 . . . 2 . 1 . . Network Status 3 | . . . . . . . . . . . . . 1 . . . 1 . 1 . . Build 1 | . . . . . . . . . . . . . . . . . 1 . . . . Repair Station Hacks 6 | . . 2 . . . . . . . . . . 2 . . . 2 . . . . Scan Component 3 | . . 1 . . . . . . . . . . 1 . . . 1 . . . . Repair 3 | . . 1 . . . . . . . . . . 1 . . . 1 . . . . Recycling Unit Hacks . | . . . . . . . . . . . . . . . . . . . . . . Scanalyzer 8 | . . 2 . . . 4 . . . . . . 1 . . . . 1 . . . Insert Component 5 | . . 1 . . . 2 . . . . . . 1 . . . . 1 . . . Analyze 3 | . . 1 . . . 2 . . . . . . . . . . . . . . . Garrison Access Hacks 5 | . . . . . . . 1 . . . . . 1 . . . 1 . . 1 1 Seal Access 5 | . . . . . . . 1 . . . . . 1 . . . 1 . . 1 1 Unauthorized Hacks 27 | . 4 2 . . . 1 1 . . . . . 1 4 . . 5 1 2 5 1 Terminals 25 | . 3 2 . . . 1 1 . . . . . 1 4 . . 4 1 2 5 1 Track 1 | . 1 . . . . . . . . . . . . . . . . . . . . Assimilate 7 | . . . . . . . 1 . . . . . 1 1 . . 1 1 . 2 . Botnet 10 | . 1 1 . . . 1 . . . . . . . 1 . . 2 . 1 2 1 Disrupt 2 | . . . . . . . . . . . . . . 1 . . . . 1 . . Operators 5 | . 1 1 . . . . . . . . . . . 1 . . 1 . . 1 . Fabricators 1 | . . . . . . . . . . . . . . . . . 1 . . . . Prioritize 1 | . . . . . . . . . . . . . . . . . 1 . . . . Repair Stations . | . . . . . . . . . . . . . . . . . . . . . . Recycling Units 1 | . 1 . . . . . . . . . . . . . . . . . . . . Tunnel 1 | . 1 . . . . . . . . . . . . . . . . . . . . Scanalyzers . | . . . . . . . . . . . . . . . . . . . . . . Garrison Access . | . . . . . . . . . . . . . . . . . . . . . . Data Cores Recovered . | . . . . . . . . . . . . . . . . . . . . . . Used . | . . . . . . . . . . . . . . . . . . . . . . Hacking Detections 57 | . 7 7 . . . 6 2 . . . . . 6 6 2 . 6 2 2 8 3 Full Trace Events 3 | . 1 . . . . 1 . . . . . . . . . . . . . 1 . Feedback Events 1 | . . . . . . 1 . . . . . . . . . . . . . . . Corruption 1 | . . . . . . 1 . . . . . . . . . . . . . . . Feedback Blocked . | . . . . . . . . . . . . . . . . . . . . . . Robot Schematics Acquired 3 | . . . . . . . . . . 3 . . . . . . . . . . . Robots Built . | . . . . . . . . . . . . . . . . . . . . . . Authchips . | . . . . . . . . . . . . . . . . . . . . . . Time . | . . . . . . . . . . . . . . . . . . . . . . Total Robot Build Rating . | . . . . . . . . . . . . . . . . . . . . . . Part Schematics Acquired 18 | . . 1 . . . 2 . . . 14 . . . . . . 1 . . . . Parts Built 1 | . . . . . . . . . . . . . . . . . 1 . . . . Authchips . | . . . . . . . . . . . . . . . . . . . . . . Time 102 | . . . . . . . . . . . . . . . . . 102 . . . . Total Part Build Rating 8 | . . . . . . . . . . . . . . . . . 8 . . . . Parts Repaired 3 | . . 1 . . . . . . . . . . 1 . . . 1 . . . . Time 120 | . . 32 . . . . . . . . . . 44 . . . 44 . . . . Parts Recycled . | . . . . . . . . . . . . . . . . . . . . . . Recycled Matter . | . . . . . . . . . . . . . . . . . . . . . . Retrieved Matter . | . . . . . . . . . . . . . . . . . . . . . . Retrieved Components . | . . . . . . . . . . . . . . . . . . . . . . Parts Scanalyzed 3 | . . 1 . . . 2 . . . . . . . . . . . . . . . Part Schematics Acquired 3 | . . 1 . . . 2 . . . . . . . . . . . . . . . Parts Damaged 1 | . . . . . . 1 . . . . . . . . . . . . . . . Bothacking | -11 -10 -9 -9 -9 -8 -8 -7 -7 -7 -7 -7 -6 -6 -6 -6 -6 -5 -4 -3 -2 -1 ------------ Run | Yrd Mat Mat Min Exi Min Mat Fac Low Low Zio Dee Pro Fac Ext Cet Arc Fac Fac Res Res Acc Used RIF Installer . | . . . . . . . . . . . . . . . . . . . . . . Robots Hacked 2 | . . . . . . . . . . 2 . . . . . . . . . . . Non-combat . | . . . . . . . . . . . . . . . . . . . . . . Combat 2 | . . . . . . . . . . 2 . . . . . . . . . . . Robot Hacks Applied 2 | . . . . . . . . . . 2 . . . . . . . . . . . parse_system 2 | . . . . . . . . . . 2 . . . . . . . . . . . Relay Couplers Released . | . . . . . . . . . . . . . . . . . . . . . . Fabnet Peak Effective % . | . . . . . . . . . . . . . . . . . . . . . . Robots Rewired 4 | . . . . . . . . . . . . . . 4 . . . . . . . Allies Hacked . | . . . . . . . . . . . . . . . . . . . . . . Hacks Repelled . | . . . . . . . . . . . . . . . . . . . . . . Allies | -11 -10 -9 -9 -9 -8 -8 -7 -7 -7 -7 -7 -6 -6 -6 -6 -6 -5 -4 -3 -2 -1 -------- Run | Yrd Mat Mat Min Exi Min Mat Fac Low Low Zio Dee Pro Fac Ext Cet Arc Fac Fac Res Res Acc Total Allies 27 | . . . . . . . 1 . . 5 . . 1 17 . . . 1 . 2 . Largest Group 8 | . . . . . . . 1 . . 5 5 . 1 8 8 1 . 1 . 1 . Highest-Rated Group 187 | . . . . . . . 26 . . 121 121 . 26 187 174 10 . 10 . 45 . Highest-Rated Ally 45 | . . . . . . . 26 . . 31 31 . 26 39 31 10 . 10 . 45 . Total Orders 33 | . . . . . . . 3 . . . 6 . 3 11 2 . . 4 . 4 . STAY 17 | . . . . . . . 2 . . . 1 . 2 6 1 . . 2 . 3 . FOLLOW 10 | . . . . . . . 1 . . . . . 1 4 1 . . 2 . 1 . GUARD 1 | . . . . . . . . . . . . . . 1 . . . . . . . EXPLORE 3 | . . . . . . . . . . . 3 . . . . . . . . . . RETURN 2 | . . . . . . . . . . . 2 . . . . . . . . . . Ally Attacks 80 | . . . . . . . . . . . 16 . . 55 9 . . . . . . Total Damage 1876 | . . . . . . . . . . . 187 . . 1426 263 . . . . . . Kills 10 | . . . . . . . . . . . 2 . . 8 . . . . . . . Allies Corrupted . | . . . . . . . . . . . . . . . . . . . . . . Allies Melted 1 | . . . . . . . . . . . 1 . . . . . . . . . . Intel | -11 -10 -9 -9 -9 -8 -8 -7 -7 -7 -7 -7 -6 -6 -6 -6 -6 -5 -4 -3 -2 -1 ------- Run | Yrd Mat Mat Min Exi Min Mat Fac Low Low Zio Dee Pro Fac Ext Cet Arc Fac Fac Res Res Acc Robot Analysis Total 4 | . 2 1 . . . . . . . . . . . 1 . . . . . . . Derelict Logs Recovered 7 | . . . 1 . . . . 2 2 1 . 1 . . . . . . . . . Drone Launches 3 | . . . . . . . . . . . 3 . . . . . . . . . . Drone Recoveries 2 | . . . . . . . . . . . 2 . . . . . . . . . . Exploration | -11 -10 -9 -9 -9 -8 -8 -7 -7 -7 -7 -7 -6 -6 -6 -6 -6 -5 -4 -3 -2 -1 ------------- Run | Yrd Mat Mat Min Exi Min Mat Fac Low Low Zio Dee Pro Fac Ext Cet Arc Fac Fac Res Res Acc Turns Passed 16162 | 30 1180 2116 675 627 973 1333 338 309 513 624 3051 372 824 1067 100 52 593 236 466 555 128 Spaces Moved 16326 | 13 746 1075 223 417 602 676 547 626 1121 1171 2276 645 1333 1150 118 60 924 560 770 920 353 Core . | . . . . . . . . . . . . . . . . . . . . . . Treads 872 | . 55 7 11 . 117 600 . . . . 82 . . . . . . . . . . Legs 1972 | 13 155 . . . . . . . . . 1804 . . . . . . . . . . Wheels 2718 | . 536 1068 212 417 485 . . . . . . . . . . . . . . . . Hover 89 | . . . . . . . . . . . 89 . . . . . . . . . . Flight 10675 | . . . . . . 76 547 626 1121 1171 301 645 1333 1150 118 60 924 560 770 920 353 Fastest Speed 31 | 120 115 145 145 145 145 50 39 39 39 39 39 39 39 39 39 39 39 34 34 31 31 Average Speed 73 | 120 125 145 158 148 153 144 39 39 39 46 114 39 39 39 39 39 39 34 34 31 31 Slowest Speed 305 | 120 240 240 240 160 160 156 39 39 39 124 305 39 39 39 39 39 39 34 34 34 31 Overloaded Moves . | . . . . . . . . . . . . . . . . . . . . . . Propulsion Burnouts . | . . . . . . . . . . . . . . . . . . . . . . Robots Hopped 9 | . . . . . . . . . . . . . . 3 . . . 1 1 4 . Cave-ins Triggered 3 | . . . . . . . . . . . 3 . . . . . . . . . . Exploration Rate (%) 54 | 2 97 90 43 89 91 39 13 73 95 88 82 63 32 69 60 66 30 17 21 30 13 Regions Visited 21 Branch Regions 11 Pre-discovered Areas 3 | . 1 . . 1 . . . . 1 . . . . . . . . . . . . Known Exits Taken 8 | . . . . . 1 . . . . . . 1 1 . . 1 1 1 1 1 . Unknown Exits Taken 13 | 1 1 1 1 1 . 1 1 1 1 1 1 . . 1 1 . . . . . . Scrap Searched 15 | . . . . . 1 . . 2 3 5 . 4 . . . . . . . . . Spaces Dug 423 | . 2 15 7 . 19 10 9 21 . . 62 33 56 41 . 1 11 7 40 84 5 Terrain Destroyed 766 | . 2 76 16 . 35 31 9 37 8 . 170 35 76 66 17 17 11 7 44 104 5 Melee 87 | . 2 6 1 . 2 . 8 . . . 1 7 21 . . . 9 7 6 12 5 Projectile 295 | . . . . . . 28 1 . . . 69 28 31 66 . 3 2 . 38 29 . AOE 384 | . . 70 15 . 33 3 . 37 8 . 100 . 24 . 17 14 . . . 63 . Terrain Rammed . | . . . . . . . . . . . . . . . . . . . . . . Walls Destroyed . | . . . . . . . . . . . . . . . . . . . . . . Machines Disabled . | . . . . . . . . . . . . . . . . . . . . . . Actions | -11 -10 -9 -9 -9 -8 -8 -7 -7 -7 -7 -7 -6 -6 -6 -6 -6 -5 -4 -3 -2 -1 --------- Run | Yrd Mat Mat Min Exi Min Mat Fac Low Low Zio Dee Pro Fac Ext Cet Arc Fac Fac Res Res Acc Total 19576 | 18 896 1472 529 429 640 937 656 670 1176 1251 2621 714 1562 1634 152 82 1132 599 927 1117 362 Wait 1820 | . 73 196 283 . 13 148 75 10 30 45 102 4 125 336 11 13 152 6 83 115 . Move 16284 | 12 745 1074 222 416 601 675 546 625 1120 1170 2272 644 1332 1144 117 59 923 557 767 911 352 Hop 8 | . . . . . . . . . . . . . . 2 . . . 1 1 4 . Pick Up 151 | . 11 29 1 3 2 10 7 5 5 9 26 3 9 1 . 2 5 7 8 8 . Fast Attach 72 | 1 . 5 1 . 4 6 3 1 1 5 37 . 2 1 1 . 1 3 . . . Attach 52 | . . 7 . 1 . 5 2 . . 3 10 4 2 1 . 1 3 3 4 4 2 Detach 22 | . . 1 . 1 . 2 1 . . 2 9 1 1 1 . . . 1 1 1 . Swap 171 | . 17 45 8 2 4 10 4 4 1 3 6 5 12 20 6 3 1 3 2 15 . Drop 189 | . 4 28 4 6 6 19 8 6 6 12 50 3 7 1 1 1 2 10 10 5 . Fire 589 | 5 39 80 7 . 7 62 1 19 13 2 99 42 39 79 13 2 2 . 41 35 2 Melee 146 | . 7 7 2 . 3 . 9 . . . 7 8 33 . 3 1 23 8 10 19 6 Ram . | . . . . . . . . . . . . . . . . . . . . . . Kick . | . . . . . . . . . . . . . . . . . . . . . . Crush 1 | . . . 1 . . . . . . . . . . . . . . . . . . Escape Stasis 51 | . . . . . . . . . . . 3 . . 28 . . 20 . . . . Rewire 20 | . . . . . . . . . . . . . . 20 . . . . . . . Trap . | . . . . . . . . . . . . . . . . . . . . . . Miscellaneous . | . . . . . . . . . . . . . . . . . . . . . . Route ------- -11/Scrapyard -10/Materials (discovered 4 exits: *Mat x3 / [*Min]) -9/Materials (discovered 4 exits: *Mat x3 / [*Min]) -9/Mines (discovered 2 exits: *Mat / *Exi) -9/Exiles (discovered 2 exits: [*Min x2]) -8/Mines (discovered 2 exits: *Mat x2) -8/Materials -7/Factory (discovered 5 exits: *Fac x4 / *Low) -7/Lower Caves -7/Lower Caves (discovered 2 exits: *Fac / *Zio) -7/Zion (discovered 2 exits: [*Dee] / [*Pro]) -7/Deep Caves -6/Proximity Caves -6/Factory (discovered 8 exits: Fac x4 / *Low x2 / *Ext x2) -6/Extension (discovered 2 exits: *Fac / *Cet) -6/Cetus -6/Archives -5/Factory (discovered 6 exits: *Fac x4 / Upp x2) -4/Factory (discovered 5 exits: *Res x4 / [*Upp]) -3/Research (discovered 3 exits: *Res x3) -2/Research (discovered 5 exits: *Acc x3 / Qua x2) -1/Access To Epsilon Eridani History --------- Turn | Location | Event 16 | -11/Scrapyard | Discovered new exit (range 3) 31 | -11/Scrapyard | Entered Materials 288 | -10/Materials | Discovered new exit (range 7) 288 | -10/Materials | Central database locked down 314 | -10/Materials | Build established: Mutant 413 | -10/Materials | Discovered new exit (range 15) 681 | -10/Materials | Destroyed 7 combat bots 745 | -10/Materials | Discovered new exit (range 6) 806 | -10/Materials | Discovered new exit (range 15) 1211 | -10/Materials | Entered another Materials area 1211 | -9/Materials | Evolved 2 slots: Propulsion x1, Utility x1 1367 | -9/Materials | Repaired Mni. Grenade Launcher? 1985 | -9/Materials | Discovered new exit (range 16) 2039 | -9/Materials | Identified exit to Materials 2271 | -9/Materials | Discovered new exit (range 16) 2303 | -9/Materials | Build established: Scavenger-Mutant 2572 | -9/Materials | Discovered exit to Materials (range 15) 2811 | -9/Materials | First assault squad dispatched 2883 | -9/Materials | Discovered exit to Materials (range 15) 3021 | -9/Materials | Core integrity fell below 50% 3327 | -9/Materials | Entered Mines 3332 | -9/Mines | Discovered exit to Materials (range 10) 3349 | -9/Mines | Joined a pair of Derelicts in attacking an 0b10 outpost 3411 | -9/Mines | Learned 2 Materials zone layouts 3427 | -9/Mines | Assembled infested the area 3570 | -9/Mines | Build established: Mutant 3825 | -9/Mines | Deemed a non-threat by the Exiles lab entrance 3827 | -9/Mines | Discovered new exit (range 5) 4002 | -9/Mines | Entered Exiles 4023 | -9/Exiles | Discovered new exit (range 15) 4047 | -9/Exiles | Met 8R-AWN 4071 | -9/Exiles | Met EX-HEX 4140 | -9/Exiles | Met EX-DEC 4173 | -9/Exiles | Visited The Gauntlet 4329 | -9/Exiles | Learned location of Zion (-7) 4384 | -9/Exiles | Met EX-BIN 4404 | -9/Exiles | Aligned with FarCom system 4405 | -9/Exiles | Given EX-Vault access code 4443 | -9/Exiles | Opened EX-Vault 4455 | -9/Exiles | Found Flying Fortress v7 4487 | -9/Exiles | Warned to stay clear of 0b10 Research branches 4614 | -9/Exiles | Discovered new exit (range 10) 4629 | -9/Exiles | Left Exiles lab with Flying Fortress v7 4629 | -9/Exiles | Entered Mines 4830 | -8/Mines | Discovered exit to Materials (range 11) 5125 | -8/Mines | Discovered exit to Materials (range 11) 5401 | -8/Mines | Found DCF Scrap (14 items) 5602 | -8/Mines | Entered Materials 5602 | -8/Materials | Evolved 2 slots: Propulsion x1, Utility x1 6042 | -8/Materials | Discovered new exit (range 6) 6935 | -8/Materials | Entered Factory 6935 | -7/Factory | Evolved 2 slots: Propulsion x1, Utility x1 7117 | -7/Factory | Identified exit to Factory 7189 | -7/Factory | Build established: Hacker-Mutant 7203 | -7/Factory | Discovered new exit (range 5) 7273 | -7/Factory | Entered Lower Caves 7295 | -7/Lower Caves | Found DCF Scrap (13 items) 7417 | -7/Lower Caves | Attracted the attention of an 0b10 outpost 7478 | -7/Lower Caves | Learned Factory trap positions 7511 | -7/Lower Caves | Learned Factory garrison access intel 7522 | -7/Lower Caves | Encountered a Warlord checkpoint 7550 | -7/Lower Caves | Discovered new exit (range 7) 7576 | -7/Lower Caves | Spotted B-75 Beast 7582 | -7/Lower Caves | Entered another Lower Caves area 7586 | -7/Lower Caves | Learned Factory terminal intel 7589 | -7/Lower Caves | Discovered exit to Factory (range 15) 7592 | -7/Lower Caves | Encountered a Warlord checkpoint 8055 | -7/Lower Caves | Discovered new exit (range 10) 8095 | -7/Lower Caves | Entered Zion 8134 | -7/Zion | Discovered new exit (range 10) 8195 | -7/Zion | Gained Derelict followers 8202 | -7/Zion | Learned location of 1 exit from Proximity Caves 8287 | -7/Zion | Found Prototype Device 8287 | -7/Zion | Identified Phasing AFG 8356 | -7/Zion | Given the Hacking Drone Bay 8356 | -7/Zion | Found Prototype Device 8356 | -7/Zion | Identified Hacking Drone Bay 8373 | -7/Zion | Acquired unknown access codes intercepted by a Zionite 8443 | -7/Zion | Rebuked by Imprinter 8486 | -7/Zion | Found Prototype Special Weapon 8486 | -7/Zion | Identified RU-N14's Throwing Claymores 8494 | -7/Zion | Found RU-N14's Throwing Claymores 8495 | -7/Zion | Found RU-N14's Throwing Claymores 8497 | -7/Zion | Found RU-N14's Throwing Claymores 8678 | -7/Zion | Opened final containment barrier to the Deep Caves 8701 | -7/Zion | Discovered new exit (range 3) 8701 | -7/Zion | Saw the warning signs outside the Deep Caves entrance 8719 | -7/Zion | Entered Deep Caves 8719 | -7/Deep Caves | Accompanied by 5 allies 9055 | -7/Deep Caves | Build established: Derelict-Mutant 9785 | -7/Deep Caves | Found Prototype Protection 9785 | -7/Deep Caves | Identified Zio. Weapon Casing 10295 | -7/Deep Caves | Found Prototype Protection 10295 | -7/Deep Caves | Identified Zio. Heavy Carapace 10549 | -7/Deep Caves | Build established: Mutant 11046 | -7/Deep Caves | Discovered new exit (range 6) 11357 | -7/Deep Caves | Crushed by falling debris 11362 | -7/Deep Caves | Crushed by falling debris 11365 | -7/Deep Caves | Crushed by falling debris 11454 | -7/Deep Caves | Spotted AG-32181 11476 | -7/Deep Caves | Core integrity fell below 50% 11525 | -7/Deep Caves | Core integrity fell below 20% 11549 | -7/Deep Caves | Found Zio. Heavy Carapace 11564 | -7/Deep Caves | Released all parts (10) 11770 | -7/Deep Caves | Entered Proximity Caves 11822 | -6/Proximity Caves | Learned 4 Factory zone layouts 12142 | -6/Proximity Caves | Entered Factory 12142 | -6/Factory | Evolved 2 slots: Utility x2 12144 | -6/Factory | Loaded intel: 91 trap records 12145 | -6/Factory | Loaded intel: 26 terminal locations 12146 | -6/Factory | Loaded intel: 3 garrison access locations 12238 | -6/Factory | Discovered new exit (range 6) 12422 | -6/Factory | Identified exit to Lower Caves 12422 | -6/Factory | Identified exit to Extension 12422 | -6/Factory | Identified exit to Factory 12423 | -6/Factory | Build established: Hacker-Mutant 12779 | -6/Factory | Repaired Lyr. Light Armor Plating 12966 | -6/Factory | Entered Extension 12966 | -6/Extension | Accompanied by 1 ally 13307 | -6/Extension | Rescued a captive Derelict 13308 | -6/Extension | Rescued a captive Derelict 13313 | -6/Extension | Rescued a captive Derelict 13359 | -6/Extension | Rescued a captive Derelict 13369 | -6/Extension | Rescued a captive Derelict 13448 | -6/Extension | Lost 5 allies 13533 | -6/Extension | Rescued a captive Derelict 13660 | -6/Extension | Rescued a captive Derelict 13663 | -6/Extension | Rescued a captive Derelict 13843 | -6/Extension | Rescued a captive Derelict 13843 | -6/Extension | Rescued a captive Derelict 13872 | -6/Extension | Rescued a captive Derelict 13898 | -6/Extension | Lost 3 allies 13946 | -6/Extension | Rescued a captive Derelict 13951 | -6/Extension | Rescued a captive Derelict 13959 | -6/Extension | Discovered exit to Factory (range 10) 13959 | -6/Extension | Discovered new exit (range 6) 14033 | -6/Extension | Entered Cetus 14033 | -6/Cetus | Accompanied by 8 allies 14050 | -6/Cetus | Spotted Cetus Guard 14051 | -6/Cetus | Spotted Cetus Guard 14051 | -6/Cetus | Spotted Cetus Guard 14052 | -6/Cetus | Spotted Cetus Guard 14065 | -6/Cetus | Destroyed Cetus Guard 14068 | -6/Cetus | Destroyed Cetus Guard 14070 | -6/Cetus | Destroyed Cetus Guard 14071 | -6/Cetus | Destroyed Cetus Guard 14098 | -6/Cetus | Lost 7 allies 14116 | -6/Cetus | Discovered new exit (range 16) 14133 | -6/Cetus | Entered Archives 14133 | -6/Archives | Accompanied by 1 ally 14180 | -6/Archives | Discovered exit to Factory (range 13) 14185 | -6/Archives | Entered Factory 14185 | -5/Factory | Evolved 2 slots: Utility x2 14245 | -5/Factory | Identified exit to Factory 14447 | -5/Factory | Identified exit to Upper Caves 14580 | -5/Factory | Repaired Transmission Jammer 14758 | -5/Factory | Fabricated Centrium Light Armor Plating? 14778 | -5/Factory | Entered another Factory area 14778 | -4/Factory | Evolved 2 slots: Propulsion x1, Utility x1 14793 | -4/Factory | Identified exit to Research 14969 | -4/Factory | Discovered new exit (range 5) 15014 | -4/Factory | Entered Research 15014 | -3/Research | Evolved 2 slots: Utility x2 15228 | -3/Research | Identified exit to Research 15250 | -3/Research | Spotted B-86 Titan 15286 | -3/Research | Build established: Wizard-Ninja 15295 | -3/Research | Spotted B-86 Titan 15480 | -3/Research | Entered another Research area 15480 | -2/Research | Evolved 2 slots: Propulsion x1, Utility x1 15491 | -2/Research | Identified exit to Access 15491 | -2/Research | Identified exit to Quarantine 15628 | -2/Research | Spotted B-90 Cyclops 16035 | -2/Research | Entered Access 16035 | -1/Access | Evolved 2 slots: Power x1, Utility x1 16054 | -1/Access | Spotted B-99 Colossus 16058 | -1/Access | Identified exit to Surface 16066 | -1/Access | Spotted B-99 Colossus 16163 | *** | Escaped! Last Messages --------------- 16 Recyclers 1 Mechanic Downloaded coordinate data. 16115_ Connecting with Garrison Access... >>Seal Access door sealed. 16118_ Sneak attack on R-10 Processor. 16118_ R-10 Processor destroyed. 16120_ Acquired 113 matter. 16120_ K-01 Serf collects debris. 16130_ Connecting with Terminal... >>Traps(Locate) Found 4 traps in 1 array: 4x Segregator Trap Map updated. 16143_ Acquired 86 matter. 16160_ Connecting with Terminal... >>Open(Door) Sealed Barrier opened. 16161_ The Access Shell folds into the floor. Map ----- +----------------------------------------------------+ | ????????????????????## # | | ????????????????????## # | | ????????????????????## "" # | | ????????????????????## "" # | | ????????????????????## Y" # | | ????????????????????## "" + | | ????????????????????## "" ### """"T"""" #### | | ????????????????????## ###"""""""""""#### | | ????????????????????## ################## | | ????###################;######################## | | ????###################;################ ! #### | | ?? #### | | ?? #### | | ??????##+##### ###### ""######### #### | | ?????? # ###### ""##########??##### | | ???????????????????## ""##?????????????## | | ???????????????????## T##?????????????## | | ???????????????????## ""##?????????????## | | ??????????????????### ""###????????????## | | ??????????????????### ""###????????????## | | ??????????????????## ##????????????## | | ??????????????????### ###????????????## | | ??????????????????### ###????????????## | | ???????????????????## ##?????????????## | | ???????????????????## ##?????????????## | | ???????????????????## @" ##?????????????## | | ???????????????????## "" ##?????????????## | | ???????????????????## ##?????????????## | | ???????????????????## ##?????????????## | | ???????????????????## ##?????????????## | | ???????????????????##""""""""""##?????????????## | | ???????????????????##"????????"##?????????????## | | ??????????????????????????????????????????????## | | ????????????????????????????????????????######## | | ????????????????????????????????????????########## | | ??????????????????????BB????BB??????????## | | ??????????????????????BB ?BB??????????## | | ?????????????????????? ?????????????## "" | | ?????????????????????? ?????????????## "" | | ??????????????????????? ????????????## """""" | | ?????????????????????? ????????????## """""" | | ??????????????????????## ????????????## "" | | ???????????? ###### #########???## "" | | ????????????#+########## #########???## | | ???????????? ##???## | | ?????????????? ##???## | | ??????????????? ####### | | ????????????????? ############### | | ?????????????????"" | | ????????????????""""" | +----------------------------------------------------+ Best States ------------- Heat Dissipation 66 Energy Generation 42 Energy Capacity 890 Matter Stores 300 Matter Capacity 300 Sight Range 22 Terrain Scan Density 10 ECM Strength 2 Jamming Range 16 Power Amplification 30 Armor Coverage 1600 Weapon Shielding 100 Phase Shifting 5 Evasion (%) 75 Recoil Reduction 4 Offensive Hacking 65 Defensive Hacking 24 Item Schematics ----------------- Mni. Grenade Launcher | -9/Materials | Scanalyzed Imp. VTOL Module | -8/Materials | Scanalyzed Machine Analyzer | -8/Materials | Scanalyzed Phase Cannon | -7/Zion | Archive Hvy. Ion Cannon | -7/Zion | Archive Remote Force Field | -7/Zion | Archive System Restoration Module | -7/Zion | Archive Energy Well | -7/Zion | Archive Component Analysis Suite | -7/Zion | Archive Imp. System Restoration Module | -7/Zion | Archive Adv. Assault Cannon | -7/Zion | Archive Flexi-carbon Leg | -7/Zion | Archive Great Axe | -7/Zion | Archive Adv. Shield Generator | -7/Zion | Archive Imp. Medium Treads | -7/Zion | Archive Kinecellerator | -7/Zion | Archive Matter Compressor | -7/Zion | Archive Cld. VTOL Module | -5/Factory | Hacked Robot Schematics ------------------ S-27 Virus | -7/Zion | Archive G-47 Trooper | -7/Zion | Archive B-48 Gladiator | -7/Zion | Archive Fabricated ------------ Centrium Light Armor Plating | x1 | -5/Factory | Preloaded Alien Tech Used ----------------- None Achievements -------------- None Challenges ------------ None Game ------ Seed CompactChipDeflector Manual? 0 Play Time 05:24:33 Cumulative 565.2 hours Start 2024.09.05 @ 20:15:03 End 2024.09.06 @ 03:17:08 Sessions 11 Manual Loads 0 Difficulty Rogue Special Mode None Game No. 131 Rogue 91 Adventurer 4 Explorer 36 Win Type 0 Total 40 Types 20/6/4/2/2/3/2/0/1 Lore% 72 Gallery% 85 Achievement% 89 Wizard Run 0 Options --------- Layout 0 ASCII 0 Keyboard 1 Movement Vi Keybinds 0 Fullscreen 1 Font 18/X11 Map View 112x50 Zoom Use 0% Tactical HUD 1 Map Filters NONE Filters NONE Steam 1 RUN: 5c887996-00d5-4950-863f-8aad038cc4e0